fUSD/lending_fUSD_20251123
["ID","MTS","AMOUNT","RATE_DAILY","PERIOD"]
[394681204,1763868638102,-300.0,0.00027722,2]
[394681205,1763868638112,-300.0,0.00027723,2]
[394681206,1763868638121,-300.0,0.00027723,2]
[394681207,1763868638131,-300.0,0.00027736,2]
[394681208,1763868638140,-300.0,0.00027738,2]
[394681209,1763868638149,-300.0,0.00027741,2]
[394681210,1763868638159,-300.0,0.00027756,2]
[394681211,1763868638169,-300.0,0.00027762,2]
[394681212,1763868638178,-300.0,0.00027766,2]
[394681213,1763868638188,-300.0,0.00027768,2]
[394681214,1763868638197,-300.0,0.00027768,2]
[394681215,1763868638206,-300.0,0.00027781,2]
[394681216,1763868638215,-300.0,0.00027782,2]
[394681217,1763868638224,-300.0,0.00027785,2]
[394681218,1763868638233,-300.0,0.0002779,2]
[394681219,1763868638242,-300.0,0.00027793,2]
[394681220,1763868638251,-300.0,0.00027797,2]
[394681221,1763868638261,-300.0,0.00027798,2]
[394681222,1763868638270,-300.0,0.00027809,2]
[394681223,1763868638280,-300.0,0.00027826,2]
[394681224,1763868638290,-300.0,0.00027829,2]
[394681225,1763868638299,-300.0,0.00027835,2]
[394681226,1763868638309,-300.0,0.00027845,2]
[394681227,1763868638318,-300.0,0.00027848,2]
[394681228,1763868638327,-300.0,0.00027854,2]
[394681229,1763868638338,-300.0,0.00027857,2]
[394681230,1763868638358,-300.0,0.00027858,2]
[394681231,1763868638368,-300.0,0.00027867,2]
[394681232,1763868638377,-300.0,0.00027881,2]
[394681233,1763868638387,-300.0,0.00027882,2]
[394681234,1763868638397,-300.0,0.00027882,2]
[394681235,1763868638406,-300.0,0.00027887,2]
[394681236,1763868638416,-300.0,0.00027888,2]
[394681237,1763868638426,-300.0,0.00027896,2]
[394681238,1763868638436,-5399.46019968,0.00027899,2]
[394681239,1763868638445,-1000.0,0.000279,2]
[394681240,1763868638455,-290.54183073,0.000279,2]
[394681241,1763868638465,-547.50417453,0.000279,2]
[394681242,1763868638474,-300.0,0.00027902,2]
[394681243,1763868638484,-300.0,0.00027905,2]
[394681244,1763868638494,-300.0,0.00027913,2]
[394681245,1763868638503,-300.0,0.00027931,2]
[394681246,1763868638513,-300.0,0.00027934,2]
[394681247,1763868638522,-300.0,0.00027942,2]
[394681248,1763868638533,-300.0,0.00027943,2]
[394681249,1763868638543,-300.0,0.00027944,2]
[394681250,1763868638553,-300.0,0.00027946,2]
[394681251,1763868638563,-426.17604057,0.00027947,2]
[394681252,1763868638573,-13733.35302693,0.00027947,2]
[394681253,1763868638582,-300.0,0.0002795,2]
[394681254,1763868638592,-300.0,0.00027959,2]
[394681255,1763868638601,-500.0,0.00027973,5]
[394681256,1763868638611,-500.0,0.00027973,5]
[394681257,1763868638620,-300.0,0.00027975,2]
[394681258,1763868638630,-300.0,0.00027977,2]
[394681259,1763868638640,-58352.35674118,0.00027979,2]
[394681260,1763868638651,-1300.0,0.00027979,2]
[394681261,1763868638662,-3048.48917838,0.00027979,2]
[394681264,1763868639591,-320.39585819,0.00027979,2]
[394681265,1763868639663,-98623.58904535,0.00027979,2]
[394681266,1763868639672,-151.0,0.00027989,2]
[394681267,1763868639681,-151.0,0.00027989,2]
[394681268,1763868639691,-259.85004232,0.00027989,2]
[394681269,1763868639700,-91763.87305252,0.0002799,3]
[394681270,1763868639711,-52898.50347148,0.0002799,3]
[394681271,1763868639720,-2355.0,0.00027999,5]
[394681272,1763868639731,-509.03801018,0.00027999,2]
[394681273,1763868639740,-195.87951806,0.00027999,2]
[394681274,1763868639750,-182.8956076,0.00027999,2]
[394681275,1763868639759,-20828.45696196,0.00028,2]
[394681276,1763868640083,-21264.32187429,0.00028,2]
[394681277,1763868640095,-4348.12435315,0.00028,2]
[394681278,1763868640105,-436.86530919,0.00028,2]
[394681279,1763868640156,-576.0,0.0002037,2]
[394681280,1763868640166,-2252.09888934,0.00028,2]
[394681281,1763868640269,-4290.1,0.00028,2]
[394681282,1763868640281,-17210.83945989,0.00028,2]
[394681283,1763868640290,-9970.92752808,0.00028,2]
[394681290,1763868644123,-576.0,0.0002337,2]
[394681291,1763868644133,-8041.68168959,0.00028,2]
[394681292,1763868644144,-100270.87581306,0.00028,2]
[394681293,1763868644155,-773.11986588,0.00028,2]
[394681294,1763868644208,-1017.5990444,0.00028,2]
[394681295,1763868644219,-296.943265,0.00028,2]
[394681296,1763868645832,-1180.00000001,0.00028,2]
[394681297,1763868645942,-5405.47653459,0.00028,2]
[394681298,1763868645973,-279.19,0.00028,2]
[394681299,1763869475193,627.33799381,0.00013699,2]
[394681300,1763869475216,289.29200619,0.00013699,2]
[394681305,1763869831935,-250.0,0.00017,2]
[394681306,1763869831945,-312.0,0.00017,2]
[394681307,1763869831954,-236.36816725,0.00018942,2]
[394681308,1763869831964,-150.0,0.000192,7]
[394681309,1763869831973,-916.63,0.00020187,2]
[394681310,1763869831982,-426.78462315,0.00020341,2]
[394681311,1763869831991,-300.0,0.00020456,2]
[394681312,1763869831999,-300.0,0.00020456,2]
[394681313,1763869832009,-276.14475661,0.00020456,2]
[394681314,1763869832043,-923.85524339,0.00020456,2]
[394681316,1763869832052,-150.99,0.00020457,2]
[394681318,1763869832061,-783.144,0.00020457,2]
[394681320,1763869832070,-169.159,0.00020457,2]
[394681322,1763869832079,-2659.0,0.00020457,2]
[394681324,1763869832088,-561.0,0.00020457,2]
[394681326,1763869832097,-150.0,0.00020457,2]
[394681328,1763869832107,-349.35794445,0.00021829,2]
[394681330,1763869832116,-300.0,0.00022264,2]
[394681332,1763869832125,-404.0,0.00022371,2]
[394681334,1763869832134,-151.0,0.00022444,2]
[394681336,1763869832144,-156.587,0.00022444,2]
[394681339,1763869832153,-313.05356623,0.00022444,2]
[394681341,1763869832162,-2659.0,0.00023457,2]
[394681344,1763869832171,-561.0,0.00023457,2]
[394681347,1763869832180,-150.0,0.00023457,2]
[394681350,1763869832190,-1613.02628636,0.00023525,2]
[394681353,1763869832201,-931.74371364,0.00023525,2]
[394681355,1763869832210,-64.40806815,0.00024658,7]
[394681612,1763869840002,-1192.0,0.00020457,2]
[394681613,1763869840014,-571.21193185,0.00024658,7]
[394681614,1763869840023,-1209.18,0.00024658,2]
[394681615,1763869840033,-16069.80806815,0.00024658,2]
[394681616,1763869840056,-3451.2279356,0.00024658,2]
[394681617,1763869840067,-579.48399625,0.00024658,2]
[394681618,1763869840077,-71.01500375,0.000251,2]
[394681708,1763869843606,-428.98499625,0.000251,2]
[394681709,1763869843615,-2000.0,0.000252,2]
[394681710,1763869843625,-303.0,0.000252,2]
[394681711,1763869843634,-500.0,0.00025259,2]
[394681712,1763869843643,-500.0,0.00025807,2]
[394681713,1763869843652,-526.37125035,0.00026355,2]
[394681714,1763869843661,-466.227,0.00026457,2]
[394681715,1763869843670,-561.0,0.00026457,2]
[394681716,1763869843679,-510.263167,0.00026619,120]
[394681717,1763869843689,-916.63,0.00026676,2]
[394681718,1763869843698,-152.69,0.00026804,2]
[394681719,1763869843707,-500.0,0.0002699,20]
[394681720,1763869843716,-168.01,0.00027079,120]
[394681721,1763869843725,-159.93,0.00027127,2]
[394681722,1763869843734,-1863.12,0.00027338,2]
[394681723,1763869843744,-250.0,0.00027377,2]
[394681724,1763869843753,-300.0,0.00027397,2]
[394681725,1763869843763,-1464.09267255,0.00027753,2]
[394681726,1763869843772,-150.0,0.00027863,4]
[394681727,1763869843781,-150.0,0.00027863,4]
[394681728,1763869843790,-150.0,0.00027863,4]
[394681729,1763869843799,-150.00000001,0.00027863,4]
[394681730,1763869843808,-150.0,0.00027863,4]
[394681731,1763869843817,-150.00000001,0.00027863,4]
[394681732,1763869843826,-156.41691693,0.00027863,4]
[394681733,1763869843836,-150.0,0.00027863,4]
[394681734,1763869843845,-150.0,0.00027863,4]
[394681735,1763869843854,-150.0,0.00027863,4]
[394681736,1763869843863,-1000.0,0.000279,2]
[394681737,1763869843874,-4859.51417973,0.000279,2]
[394681738,1763869843883,-6793.18885234,0.00028,2]
[394681765,1763869846031,-602.0,0.00028,2]
[394681766,1763869846085,-3125.23842,0.00028,2]
[394681767,1763869846346,-3449.8,0.00028,2]
[394681776,1763870311711,1000.0,0.00022,30]
[394681781,1763871032049,-364.0,0.000191,2]
[394681782,1763871032059,-338.57656952,0.000191,2]
[394681783,1763871032069,-150.0,0.000192,7]
[394681784,1763871032079,-69.83873296,0.000192,2]
[394681786,1763871032149,-180.16126704,0.000192,2]
[394681787,1763871032159,-258.44664034,0.000192,2]
[394681788,1763871032169,-1200.0,0.00020455,2]
[394681789,1763871032178,-300.0,0.00020456,2]
[394681790,1763871032188,-300.0,0.00020456,2]
[394681791,1763871032197,-1320.0,0.00020457,2]
[394681792,1763871032207,-609.0,0.00020457,2]
[394681793,1763871032216,-576.0,0.00020457,2]
[394681794,1763871032225,-226.975,0.00020457,2]
[394681795,1763871032235,-250.0,0.0002112,2]
[394681796,1763871032244,-300.0,0.0002112,2]
[394681797,1763871032253,-300.0,0.0002112,2]
[394681798,1763871032262,-300.0,0.0002112,2]
[394681799,1763871032271,-250.0,0.0002112,2]
[394681800,1763871032280,-300.0,0.0002112,2]
[394681801,1763871032289,-373.60999068,0.0002112,2]
[394681802,1763871032299,-420.0,0.00022264,2]
[394681803,1763871032308,-796.0,0.00022369,2]
[394681804,1763871032317,-1320.0,0.00023457,2]
[394681805,1763871032326,-667.01,0.00024232,2]
[394681806,1763871032335,-451.0,0.00024232,2]
[394681807,1763871032345,-426.78462315,0.00024268,2]
[394681808,1763871032354,-166.66,0.00024594,30]
[394681809,1763871032363,-1882.0,0.000247,2]
[394681810,1763871032372,-166.66,0.00025112,30]
[394681811,1763871032382,-166.66,0.00025629,30]
[394681812,1763871032392,-508.496,0.00025644,10]
[394681813,1763871032401,-1000.0,0.00025646,2]
[394681814,1763871032410,-200.0,0.00025664,2]
[394681815,1763871032420,-468.68,0.00025715,2]
[394681816,1763871032429,-9763.8424059,0.0002591,2]
[394681817,1763871032439,-34657.1310719,0.0002591,2]
[394681818,1763871032447,-166.66,0.00026147,30]
[394681819,1763871032457,-1320.0,0.00026457,2]
[394681820,1763871032467,-166.66,0.00026665,30]
[394681821,1763871032476,-165.65,0.00026759,2]
[394681822,1763871032485,-23235.7410368,0.00027,2]
[394681823,1763871032494,-2751.0,0.00027078,2]
[394681824,1763871032503,-6068.95,0.00027161,2]
[394681825,1763871032512,-166.66,0.00027183,30]
[394681827,1763871032521,-500.0,0.00027384,30]
[394681830,1763871032531,-500.0,0.00027384,30]
[394681832,1763871032540,-500.0,0.00027384,30]
[394681834,1763871032549,-578.26533557,0.00027384,30]
[394681835,1763871032558,-150.0,0.00027838,4]
[394681836,1763871032567,-150.0,0.00027838,4]
[394681837,1763871032576,-150.0,0.00027838,4]
[394681838,1763871032585,-150.0,0.00027838,4]
[394681839,1763871032594,-150.0,0.00027838,4]
[394681840,1763871032603,-150.0,0.00027838,4]
[394681841,1763871032612,-150.0,0.00027838,4]
[394681842,1763871032622,-1000.0,0.000279,2]
[394681843,1763871032632,-5519.65361235,0.000279,2]
[394681844,1763871032641,-2731.60428316,0.00027957,2]
[394681845,1763871032654,-793.30310123,0.00027957,2]
[394681846,1763871032665,-1475.09261561,0.00027957,2]
[394681847,1763871032674,-206.3,0.00027993,30]
[394681848,1763871032683,-500.0,0.00027999,45]
[394681849,1763871032692,-503.75851514,0.00027999,120]
[394681850,1763871032702,-501.60895794,0.00027999,2]
[394681851,1763871032712,-2373.80156039,0.00028,2]
[394681852,1763871032724,-488.41,0.00028,2]
[394681853,1763871032759,-3209.65001136,0.00028,2]
[394681854,1763871032778,-806.96000115,0.00028,2]
[394681855,1763871032863,-1617.34995375,0.00028,2]
[394681856,1763871032874,-600.54186784,0.00028,2]
[394681857,1763871032887,-852.96246136,0.00028,2]
[394681859,1763871032897,-8358.6192992,0.00028,2]
[394681877,1763871038475,-288.207,0.0002744,2]
[394681878,1763871038485,-2.05644508,0.00028,2]
[394681879,1763871038542,-2564.26588973,0.00028,2]
[394681880,1763871038575,-287.33,0.00028,2]
[394681881,1763871038587,-23005.38905819,0.00028,2]
[394681882,1763871038602,-2854.24691403,0.00028,2]
[394681883,1763871038616,-5353.2532445,0.00028,2]
[394681884,1763871038630,-5574.83186308,0.00028,2]
[394681885,1763871038646,-2217.072792,0.00028,2]
[394681886,1763871040251,-328.24270377,0.00019,2]
[394681887,1763871040260,-249.17046613,0.0002591,2]
[394681888,1763871040291,-353.25063707,0.0002591,2]
[394681889,1763871040300,-78.75436293,0.00028,2]
[394681890,1763871040311,-253.0798291,0.00028,2]
[394681891,1763871040322,-912.69059995,0.00028,2]
[394681892,1763871040333,-508.8278815,0.00028,2]
[394681893,1763871040363,-47190.5025222,0.00028,2]
[394681894,1763871040372,-50366.34508474,0.00028,2]
[394681895,1763871040381,-300.0,0.00028,120]
[394681896,1763871040392,-281.18352895,0.00028,2]
[394681898,1763871040401,-1944.18650869,0.00028,2]
[394681900,1763871040411,-539.93294263,0.00028,2]
[394681902,1763871040420,-151.0,0.00028,2]
[394681904,1763871040429,-2000.0,0.00028,2]
[394681906,1763871040439,-1000.0,0.00028018,2]
[394681908,1763871040448,-1882.8168739,0.000284,2]
[394681910,1763871040458,-386.49,0.000285,14]
[394681912,1763871040467,-150.0,0.00028869,7]
[394681913,1763871040476,-150.0,0.00028869,7]
[394681915,1763871040486,-236.84090359,0.00028878,2]
[394681916,1763871040495,-1000.0,0.00028958,2]
[394681917,1763871040505,-150.0,0.0002898,5]
[394681919,1763871040514,-1011.84726568,0.00029,10]
[394681921,1763871040523,-437.23483868,0.00029151,2]
[394681922,1763871040533,-2178.6077197,0.00029202,2]
[394681923,1763871040542,-7733.0512063,0.00029202,2]
[394681924,1763871040552,-5519.65361232,0.00029344,2]
[394681925,1763871040562,-1319.0,0.00029457,2]
[394681926,1763871040572,-3918.66419176,0.000295,120]
[394681927,1763871040582,-877.78,0.00029589,14]
[394681928,1763871040594,-210.67265853,0.00029726,30]
[394681929,1763871040605,-6605.61567571,0.0002978,3]
[394681930,1763871040616,-8231.32796131,0.0002979,2]
[394681931,1763871040626,-492.75375705,0.000298,15]
[394681932,1763871040638,-877.78,0.00029863,14]
[394681933,1763871040648,-39633.6940543,0.00029889,3]
[394681934,1763871040658,-6605.61567571,0.0002989,3]
[394681935,1763871040668,-151.0,0.0002989,7]
[394681936,1763871040677,-151.0,0.00029899,7]
[394681937,1763871040687,-151.0,0.00029899,7]
[394681938,1763871040698,-151.0,0.00029899,7]
[394681939,1763871040708,-151.0,0.00029899,7]
[394681940,1763871040717,-151.0,0.00029899,7]
[394681941,1763871040727,-155.244354,0.00029899,7]
[394681942,1763871040736,-151.0,0.00029899,7]
[394681943,1763871040747,-151.0,0.00029899,7]
[394681944,1763871040759,-151.0,0.00029899,7]
[394681945,1763871040769,-151.0,0.00029899,7]
[394681946,1763871040778,-151.0,0.00029899,7]
[394681947,1763871040787,-78099.32844339,0.000299,2]
[394681948,1763871040797,-10941.554241,0.000299,2]
[394681949,1763871040807,-150.0,0.000299,7]
[394681950,1763871040816,-150.0,0.000299,7]
[394681951,1763871040826,-486.1130893,0.00029937,2]
[394681952,1763871040836,-1725.4769541,0.00029937,2]
[394681953,1763871040846,-150.17077047,0.00029973,5]
[394681954,1763871040856,-356.32660713,0.00029979,2]
[394681955,1763871040865,-151.0,0.0002998,7]
[394681956,1763871040875,-46239.30973,0.0002998,3]
[394681957,1763871040884,-500.0,0.00029989,45]
[394681958,1763871040894,-151.0,0.0002999,7]
[394681959,1763871040905,-297.813988,0.0002999,7]
[394681960,1763871040914,-151.0,0.0002999,7]
[394681961,1763871040924,-151.0,0.0002999,7]
[394681962,1763871040933,-151.0,0.0002999,7]
[394681963,1763871040942,-238.401512,0.0002999,7]
[394681964,1763871040952,-236.245743,0.0002999,7]
[394681965,1763871040962,-151.0,0.0002999,7]
[394681966,1763871040971,-151.0,0.0002999,7]
[394681967,1763871040980,-125506.697838,0.0002999,3]
[394681968,1763871040990,-85668.1231887,0.0002999,3]
[394681969,1763871041000,-500.0,0.00029999,45]
[394681970,1763871041009,-500.0,0.00029999,45]
[394681971,1763871041018,-192623.41,0.0003,2]
[394681972,1763871041027,-60755.65303659,0.0003,2]
[394681973,1763871041037,-1507.26233362,0.0003,6]
[394681974,1763871041046,-228.04,0.0003,7]
[394681975,1763871041055,-300.0,0.0003,120]
[394681976,1763871041064,-151.0,0.0003,7]
[394681977,1763871041074,-151.0,0.0003,7]
[394681978,1763871041084,-151.0,0.0003,7]
[394681979,1763871041093,-151.0,0.0003,7]
[394681980,1763871041102,-8566.81231887,0.00030034,3]
[394681981,1763871041111,-1000.0,0.00030044,2]
[394681982,1763871041121,-6605.61567571,0.00030126,3]
[394681983,1763871041130,-877.78,0.00030136,14]
[394681984,1763871041140,-877.78,0.0003041,14]
[394681985,1763871041149,-1674.0,0.00030638,5]
[394681986,1763871041158,-1302.37519166,0.00030638,4]
[394681987,1763871041167,-877.78,0.00030684,14]
[394681988,1763871041178,-6605.61567571,0.00030769,3]
[394681989,1763871041187,-8566.81231887,0.00030779,3]
[394681990,1763871041196,-5519.65361232,0.00030789,2]
[394681991,1763871041206,-1205.08658712,0.00030821,2]
[394681992,1763871041215,-6605.61567571,0.000309,3]
[394681993,1763871041224,-151.0,0.0003091,31]
[394681994,1763871041234,-151.0,0.0003091,31]
[394681995,1763871041243,-224.29499017,0.0003091,31]
[394681996,1763871041252,-151.0,0.0003091,31]
[394681997,1763871041261,-8566.81231887,0.00030911,3]
[394681998,1763871041270,-13211.2313514,0.0003092,3]
[394681999,1763871041279,-8566.81231887,0.0003092,3]
[394682000,1763871041288,-19816.8470271,0.0003093,3]
[394682001,1763871041297,-17133.6246377,0.0003093,3]
[394682002,1763871041307,-150.0,0.00030932,7]
[394682003,1763871041317,-150.0,0.00030932,7]
[394682004,1763871041326,-150.0,0.00030932,7]
[394682005,1763871041335,-151.0,0.0003094,31]
[394682006,1763871041345,-242.539524,0.0003094,31]
[394682007,1763871041354,-39633.6940543,0.0003094,3]
[394682008,1763871041363,-42834.0615943,0.0003094,3]
[394682009,1763871041372,-170.22989997,0.0003094,2]
[394682010,1763871041381,-8566.81231887,0.00030948,3]
[394682011,1763871041391,-445.46649362,0.00030949,45]
[394682012,1763871041400,-78173.71856504,0.0003095,2]
[394682013,1763871041410,-877.78,0.00030958,14]
[394682014,1763871041419,-8566.81231887,0.0003097,3]
[394682015,1763871041428,-161.91845628,0.00030973,5]
[394682016,1763871041437,-25700.4369566,0.0003098,3]
[394682017,1763871041446,-51400.8739132,0.0003099,3]
[394682018,1763871041455,-100000.0,0.00031,2]
[394682019,1763871041464,-338.05819337,0.00031,5]
[394682020,1763871041475,-162.72,0.00031,30]
[394682021,1763871041485,-8231.32796123,0.00031024,2]
[394682022,1763871041494,-492.75375705,0.00031033,15]
[394682023,1763871041504,-150.0,0.00031112,20]
[394682024,1763871041513,-1000.0,0.0003113,2]
[394682025,1763871041522,-1000.0,0.00031131,2]
[394682026,1763871041531,-165.65,0.00031176,2]
[394682027,1763871041540,-8566.81231887,0.00031222,3]
[394682028,1763871041550,-877.78,0.00031232,14]
[394682029,1763871041559,-500.0,0.000314,120]
[394682030,1763871041568,-877.78,0.00031506,14]
[394682031,1763871041578,-300.0,0.00031507,3]
[394682032,1763871041587,-181.67,0.00031507,120]
[394682033,1763871041596,-538.05492791,0.00031611,7]
[394682034,1763871041605,-877.78,0.0003178,14]
[394682035,1763871041615,-3948.42806357,0.00032,5]
[394682036,1763871041624,-228.04,0.00032,7]
[394682037,1763871041634,-400.0,0.00032,120]
[394682038,1763871041644,-877.78,0.00032054,14]
[394682039,1763871041654,-8566.81231887,0.00032205,3]
[394682040,1763871041663,-1000.0,0.00032215,2]
[394682041,1763871041673,-5519.65361232,0.00032233,2]
[394682042,1763871041683,-8231.32796123,0.00032259,2]
[394682043,1763871041692,-492.75375705,0.00032267,15]
[394682044,1763871041701,-8566.81231887,0.00032306,3]
[394682045,1763871041711,-877.78,0.00032328,14]
[394682046,1763871041720,-1205.08658709,0.00032501,2]
[394682047,1763871041729,-877.78,0.00032602,14]
[394682048,1763871041739,-162.72,0.000327,30]
[394682049,1763871041753,-1052.23242123,0.00032733,7]
[394682050,1763871041763,-478.87,0.0003281,2]
[394682051,1763871041772,-8566.81231887,0.00032847,3]
[394682052,1763871041781,-8566.81231887,0.00032857,3]
[394682053,1763871041791,-8566.81231887,0.00032866,3]
[394682054,1763871041801,-8566.81231887,0.00032867,3]
[394682055,1763871041811,-2000.0,0.00032876,30]
[394682056,1763871041820,-2000.0,0.00032876,30]
[394682057,1763871041830,-2000.0,0.00032876,30]
[394682058,1763871041840,-2000.0,0.00032876,30]
[394682059,1763871041849,-2000.0,0.00032876,30]
[394682060,1763871041859,-2000.0,0.00032876,30]
[394682061,1763871041868,-2000.0,0.00032876,30]
[394682062,1763871041877,-2000.0,0.00032876,30]
[394682063,1763871041887,-2000.0,0.00032876,30]
[394682064,1763871041896,-2000.0,0.00032876,30]
[394682065,1763871041905,-1240.46474889,0.00032876,30]
[394682066,1763871041915,-877.78,0.00032876,14]
[394682067,1763871041924,-300.0,0.00032877,3]
[394682068,1763871041933,-151.0,0.00032877,31]
[394682069,1763871041942,-203.94502,0.00032877,31]
[394682070,1763871041951,-500.0,0.00032877,7]
[394682071,1763871041960,-500.0,0.00032877,7]
[394682072,1763871041970,-500.0,0.00032877,7]
[394682073,1763871041979,-500.0,0.00032877,7]
[394682074,1763871041988,-500.0,0.00032877,7]
[394682075,1763871041997,-500.0,0.00032877,7]
[394682076,1763871042006,-500.0,0.00032877,7]
[394682077,1763871042015,-500.0,0.00032877,7]
[394682078,1763871042025,-500.0,0.00032877,7]
[394682079,1763871042034,-500.0,0.00032877,7]
[394682080,1763871042043,-500.0,0.00032877,7]
[394682081,1763871042052,-500.0,0.00032877,7]
[394682082,1763871042062,-500.0,0.00032877,7]
[394682083,1763871042071,-500.0,0.00032877,7]
[394682084,1763871042080,-500.0,0.00032877,7]
[394682085,1763871042090,-500.0,0.00032877,7]
[394682086,1763871042099,-500.0,0.00032877,7]
[394682087,1763871042108,-614.92743287,0.00032877,7]
[394682088,1763871042117,-500.0,0.00032877,7]
[394682089,1763871042126,-500.0,0.00032877,7]
[394682090,1763871042136,-8566.81231887,0.0003297,3]
[394682091,1763871042146,-17133.6246377,0.0003298,3]
[394682092,1763871042156,-42834.0615943,0.0003299,3]
[394682093,1763871042165,-51019.14349666,0.00033,2]
[394682094,1763871042174,-32854.99007267,0.00033,13]
[394682095,1763871042183,-500.0,0.00033,120]
[394682096,1763871042192,-206.3,0.0003304,30]
[394682097,1763871042202,-877.78,0.0003315,14]
[394682098,1763871042211,-916.63,0.00033165,2]
[394682099,1763871042220,-1000.0,0.00033301,2]
[394682100,1763871042230,-877.78,0.00033424,14]
[394682101,1763871042239,-8566.81231887,0.00033483,3]
[394682102,1763871042248,-8231.32796123,0.00033493,2]
[394682103,1763871042257,-492.75375705,0.000335,15]
[394682104,1763871042267,-5519.65361232,0.00033678,2]
[394682105,1763871042276,-877.78,0.00033698,14]
[394682106,1763871042286,-168.01,0.00033849,120]
[394682107,1763871042294,-535.97163443,0.000339,2]
[394682108,1763871042304,-877.78,0.00033972,14]
[394682109,1763871042313,-8566.81231887,0.0003398,3]
[394682110,1763871042323,-8566.81231887,0.0003399,3]
[394682111,1763871042332,-791.54931414,0.00034,7]
[394682112,1763871042341,-2000.0,0.00034,2]
[394682113,1763871042479,-2000.0,0.00034,2]
[394682114,1763871042488,-2000.0,0.00034,2]
[394682115,1763871042498,-2000.0,0.00034,2]
[394682116,1763871042507,-2045.51,0.00034,2]
[394682117,1763871042516,-300.0,0.00034,120]
[394682118,1763871042526,-1205.08658709,0.00034181,2]
[394682119,1763871042535,-1000.0,0.00034244,2]
[394682120,1763871042544,-877.78,0.00034246,14]
[394682121,1763871042554,-433.0,0.0003449,10]
[394682122,1763871042563,-228.04,0.000345,14]
[394682123,1763871042573,-162.72,0.000345,30]
[394682124,1763871042582,-877.78,0.0003452,14]
[394682125,1763871042591,-500.0,0.00034521,2]
[394682126,1763871042600,-8231.32796123,0.00034728,2]
[394682127,1763871042610,-492.75375705,0.00034733,15]
[394682128,1763871042619,-8566.81231887,0.00034752,3]
[394682129,1763871042629,-877.78,0.00034794,14]
[394682130,1763871042639,-8566.81231887,0.0003499,3]
[394682131,1763871042648,-250.0,0.00035,7]
[394682132,1763871042658,-7432.087855,0.00035,15]
[394682133,1763871042667,-2979.60469606,0.00035,2]
[394682134,1763871042676,-150.0,0.00035,2]
[394682135,1763871042686,-151.73637929,0.00035,90]
[394682136,1763871042696,-1000.0,0.00035,7]
[394682137,1763871042707,-1012.0,0.00035,7]
[394682138,1763871042716,-500.0,0.00035,120]
[394682139,1763871042725,-877.78,0.00035068,14]
[394682140,1763871042735,-8566.81231887,0.00035102,3]
[394682141,1763871042744,-5519.65361232,0.00035122,2]
[394682142,1763871042755,-562.72,0.00035276,2]
[394682143,1763871042767,-550.91,0.00035276,2]
[394682144,1763871042776,-550.91,0.00035276,2]
[394682145,1763871042787,-550.91,0.00035276,2]
[394682146,1763871042796,-212.17,0.00035276,2]
[394682147,1763871042806,-2544.77,0.00035306,2]
[394682148,1763871042817,-877.78,0.00035342,14]
[394682149,1763871042827,-8566.81231887,0.0003538,3]
[394682150,1763871042839,-10941.554241,0.000354,2]
[394682151,1763871042848,-877.78,0.00035616,14]
[394682152,1763871042858,-250.0,0.00035616,3]
[394682153,1763871042869,-600.0,0.00035616,2]
[394682154,1763871042878,-513.6238576,0.00035616,2]
[394682155,1763871042889,-478.92,0.00035708,2]
[394682156,1763871042899,-478.92,0.00035708,2]